fUST/lending_fUST_20240730
["ID","MTS","AMOUNT","RATE_DAILY","PERIOD"]
[333654483,1722309039319,-420.0,0.00013698,2]
[333654484,1722309039328,-500.0,0.00013698,2]
[333654485,1722309039339,-500.0,0.00013698,2]
[333654486,1722309039350,-500.0,0.00013698,2]
[333654487,1722309039360,-520.39711457,0.00013698,2]
[333654488,1722309039371,-500.0,0.00013698,2]
[333654489,1722309039381,-500.0,0.00013698,2]
[333654490,1722309039391,-500.0,0.00013698,2]
[333654491,1722309039400,-500.0,0.00013698,2]
[333654492,1722309039410,-508.5222198,0.00013698,2]
[333654493,1722309039419,-500.0,0.00013698,2]
[333654494,1722309039429,-517.04881475,0.00013698,2]
[333654495,1722309039439,-500.0,0.00013698,2]
[333654496,1722309039450,-500.0,0.00013698,2]
[333654497,1722309039459,-500.0,0.00013698,2]
[333654498,1722309039468,-500.0,0.00013698,2]
[333654499,1722309039478,-500.0,0.00013698,2]
[333654500,1722309039487,-560.00923927,0.00013698,2]
[333654501,1722309039497,-500.0,0.00013698,2]
[333654502,1722309039506,-500.0,0.00013698,2]
[333654504,1722309039516,-500.0,0.00013698,2]
[333654506,1722309039526,-177.71118674,0.00013698,2]
[333654507,1722309039536,-500.0,0.00013698,2]
[333654509,1722309039546,-205.23119674,0.00013698,2]
[333654511,1722309039556,-500.0,0.00013698,2]
[333654513,1722309039565,-500.0,0.00013698,2]
[333654514,1722309039575,-500.0,0.00013698,2]
[333654516,1722309039584,-508.40938175,0.00013698,2]
[333654518,1722309039594,-500.0,0.00013698,2]
[333654520,1722309039604,-500.0,0.00013698,2]
[333654521,1722309039613,-500.0,0.00013698,2]
[333654522,1722309039623,-508.08858845,0.00013698,2]
[333654523,1722309039632,-500.0,0.00013698,2]
[333654524,1722309039641,-510.14653365,0.00013698,2]
[333654525,1722309039651,-546.53719454,0.00013698,2]
[333654526,1722309039660,-500.0,0.00013698,2]
[333654527,1722309039670,-500.0,0.00013698,2]
[333654528,1722309039680,-500.0,0.00013698,2]
[333654529,1722309039689,-622.80334018,0.00013698,2]
[333654530,1722309039700,-501.61045526,0.00013698,2]
[333654531,1722309039709,-500.0,0.00013698,2]
[333654532,1722309039718,-500.0,0.00013698,2]
[333654533,1722309039728,-508.10789393,0.00013698,2]
[333654534,1722309039737,-506.37771507,0.00013698,2]
[333654535,1722309039746,-500.0,0.00013698,2]
[333654536,1722309039756,-500.0,0.00013698,2]
[333654537,1722309039765,-501.45898937,0.00013698,2]
[333654538,1722309039775,-504.638812,0.00013698,2]
[333654539,1722309039784,-500.0,0.00013698,2]
[333654540,1722309039794,-507.47570158,0.00013698,2]
[333654541,1722309039803,-500.0,0.00013698,2]
[333654542,1722309039813,-511.79569878,0.00013698,2]
[333654543,1722309039824,-500.84098608,0.00013698,2]
[333654544,1722309039833,-505.70021294,0.00013698,2]
[333654545,1722309039843,-500.0,0.00013698,2]
[333654546,1722309039852,-500.0,0.00013698,2]
[333654547,1722309039862,-503.38329865,0.00013698,2]
[333654548,1722309039871,-500.0,0.00013698,2]
[333654549,1722309039880,-504.31399478,0.00013698,2]
[333654550,1722309039890,-500.0,0.00013698,2]
[333654551,1722309039899,-500.0,0.00013698,2]
[333654552,1722309039908,-508.87223605,0.00013698,2]
[333654553,1722309039917,-504.28363064,0.00013698,2]
[333654554,1722309039927,-500.0,0.00013698,2]
[333654555,1722309039936,-500.0,0.00013698,2]
[333654556,1722309039946,-333.23041344,0.00013698,2]
[333654557,1722309039956,-500.0,0.00013698,2]
[333654558,1722309039966,-506.74349433,0.00013698,2]
[333654559,1722309039976,-518.75609953,0.00013698,2]
[333654560,1722309039986,-508.84588911,0.00013698,2]
[333654561,1722309039995,-276.87211263,0.00013698,2]
[333654562,1722309040005,-635.94056987,0.00013698,2]
[333654564,1722309040014,-506.14910203,0.00013698,2]
[333654567,1722309040024,-625.78,0.00013698,2]
[333654570,1722309040033,-500.0,0.00013698,2]
[333654572,1722309040043,-502.09445267,0.00013698,2]
[333654574,1722309040053,-509.37842128,0.00013698,2]
[333654575,1722309040062,-515.42801362,0.00013698,2]
[333654576,1722309040071,-500.0,0.00013698,2]
[333654577,1722309040082,-500.0,0.00013698,2]
[333654578,1722309040092,-500.0,0.00013698,2]
[333654579,1722309040101,-506.50072876,0.00013698,2]
[333654580,1722309040112,-504.06481766,0.00013698,2]
[333654581,1722309040121,-507.67981792,0.00013698,2]
[333654582,1722309040132,-511.91910963,0.00013698,2]
[333654583,1722309040142,-504.88198178,0.00013698,2]
[333654584,1722309040151,-500.0,0.00013698,2]
[333654585,1722309040161,-500.0,0.00013698,2]
[333654586,1722309040171,-500.0,0.00013698,2]
[333654587,1722309040180,-502.03117762,0.00013698,2]
[333654588,1722309040190,-508.43706222,0.00013698,2]
[333654589,1722309040202,-500.0,0.00013698,2]
[333654590,1722309040213,-500.0,0.00013698,2]
[333654591,1722309040223,-501.8457317,0.00013698,2]
[333654592,1722309040233,-511.06671628,0.00013698,2]
[333654593,1722309040242,-507.21400564,0.00013698,2]
[333654600,1722309040325,-500.0,0.00013698,2]
[333654602,1722309040335,-512.12590985,0.00013698,2]
[333654603,1722309040345,-507.63716845,0.00013698,2]
[333654604,1722309040355,-503.95429218,0.00013698,2]
[333654605,1722309040364,-500.0,0.00013698,2]
[333654606,1722309040375,-510.94776825,0.00013698,2]
[333654607,1722309040385,-500.0,0.00013698,2]
[333654608,1722309040395,-504.29326574,0.00013698,2]
[333654609,1722309040404,-500.0,0.00013698,2]
[333654610,1722309040414,-627.82644844,0.00013698,2]
[333654611,1722309040425,-505.63319307,0.00013698,2]
[333654612,1722309040436,-508.55530421,0.00013698,2]
[333654613,1722309040448,-500.0,0.00013698,2]
[333654614,1722309040460,-510.10394644,0.00013698,2]
[333654615,1722309040470,-504.64758491,0.00013698,2]
[333654616,1722309040479,-517.99077456,0.00013698,2]
[333654618,1722309040488,-527.97086391,0.00013698,2]
[333654620,1722309040498,-500.0,0.00013698,2]
[333654622,1722309040507,-506.27259331,0.00013698,2]
[333654624,1722309040517,-500.0,0.00013698,2]
[333654626,1722309040528,-503.64222284,0.00013698,2]
[333654627,1722309040537,-500.0,0.00013698,2]
[333654629,1722309040547,-500.0,0.00013698,2]
[333654631,1722309040557,-502.38779338,0.00013698,2]
[333654632,1722309040567,-502.7439087,0.00013698,2]
[333654633,1722309040576,-556.06574218,0.00013698,2]
[333654634,1722309040586,-213.95271812,0.00013698,2]
[333654635,1722309040595,-509.14979183,0.00013698,2]
[333654636,1722309040605,-500.0,0.00013698,2]
[333654637,1722309040614,-500.0,0.00013698,2]
[333654638,1722309040624,-184.58584349,0.00013698,2]
[333654639,1722309040634,-187.06213236,0.00013698,2]
[333654640,1722309040643,-500.0,0.00013698,2]
[333654641,1722309040653,-500.0,0.00013698,2]
[333654642,1722309040662,-507.45556321,0.00013698,2]
[333654643,1722309040671,-503.78851115,0.00013698,2]
[333654644,1722309040681,-500.0,0.00013698,2]
[333654645,1722309040691,-500.0,0.00013698,2]
[333654646,1722309040703,-500.0,0.00013698,2]
[333654647,1722309040712,-500.0,0.00013698,2]
[333654648,1722309040721,-562.54424283,0.00013698,2]
[333654649,1722309040731,-500.0,0.00013698,2]
[333654650,1722309040740,-500.0,0.00013698,2]
[333654651,1722309040750,-500.0,0.00013698,2]
[333654652,1722309040759,-500.0,0.00013698,2]
[333654653,1722309040768,-500.0,0.00013698,2]
[333654654,1722309040778,-500.0,0.00013698,2]
[333654655,1722309040788,-508.56779062,0.00013698,2]
[333654656,1722309040797,-500.0,0.00013698,2]
[333654657,1722309040807,-508.43447397,0.00013698,2]
[333654658,1722309040819,-160.39870306,0.00013698,2]
[333654659,1722309040829,-500.0,0.00013698,2]
[333654660,1722309040839,-500.0,0.00013698,2]
[333654661,1722309040850,-516.91608745,0.00013698,2]
[333654662,1722309040860,-500.0,0.00013698,2]
[333654663,1722309040871,-500.0,0.00013698,2]
[333654664,1722309040880,-500.74138533,0.00013698,2]
[333654665,1722309040889,-500.0,0.00013698,2]
[333654666,1722309040900,-500.0,0.00013698,2]
[333654667,1722309040909,-500.0,0.00013698,2]
[333654668,1722309040919,-166.51,0.00013698,2]
[333654669,1722309040930,-330.0,0.00013698,2]
[333654670,1722309040943,-500.0,0.00013698,2]
[333654671,1722309040955,-500.0,0.00013698,2]
[333654672,1722309040964,-303.38219212,0.00013698,2]
[333654673,1722309040974,-598.64660512,0.00013698,2]
[333654674,1722309040983,-500.0,0.00013698,2]
[333654675,1722309040993,-503.05178327,0.00013698,2]
[333654676,1722309041003,-507.23967588,0.00013698,2]
[333654677,1722309041012,-500.0,0.00013698,2]
[333654678,1722309041022,-503.76233359,0.00013698,2]
[333654679,1722309041031,-500.0,0.00013698,2]
[333654680,1722309041042,-504.98524655,0.00013698,2]
[333654681,1722309041051,-479.0,0.00013698,2]
[333654682,1722309041061,-502.06327991,0.00013698,2]
[333654683,1722309041070,-516.51219953,0.00013698,2]
[333654684,1722309041080,-500.0,0.00013698,2]
[333654685,1722309041090,-500.0,0.00013698,2]
[333654686,1722309041099,-500.0,0.00013698,2]
[333654687,1722309041109,-500.0,0.00013698,2]
[333654688,1722309041119,-500.0,0.00013698,2]
[333654689,1722309041128,-504.05235574,0.00013698,2]
[333654690,1722309041138,-500.0,0.00013698,2]
[333654691,1722309041150,-500.0,0.00013698,2]
[333654692,1722309041160,-501.28280592,0.00013698,2]
[333654693,1722309041170,-500.0,0.00013698,2]
[333654694,1722309041179,-500.0,0.00013698,2]
[333654695,1722309041188,-500.0,0.00013698,2]
[333654696,1722309041199,-360.17382817,0.00013698,2]
[333654697,1722309041208,-500.0,0.00013698,2]
[333654698,1722309041217,-603.04,0.00013698,2]
[333654699,1722309041227,-500.0,0.00013698,2]
[333654700,1722309041236,-500.0,0.00013698,2]
[333654701,1722309041246,-505.76611024,0.00013698,2]
[333654702,1722309041255,-580.74189662,0.00013698,2]
[333654703,1722309041264,-500.0,0.00013698,2]
[333654704,1722309041274,-646.16176269,0.00013698,2]
[333654705,1722309041284,-500.0,0.00013698,2]
[333654706,1722309041298,-500.0,0.00013698,2]
[333654707,1722309041307,-500.0,0.00013698,2]
[333654708,1722309041316,-500.0,0.00013698,2]
[333654709,1722309041326,-500.0,0.00013698,2]
[333654710,1722309041335,-500.0,0.00013698,2]
[333654711,1722309041344,-500.0,0.00013698,2]
[333654712,1722309041353,-500.0,0.00013698,2]
[333654713,1722309041364,-500.0,0.00013698,2]
[333654714,1722309041375,-500.0,0.00013698,2]
[333654715,1722309041384,-500.0,0.00013698,2]
[333654716,1722309041393,-500.0,0.00013698,2]
[333654717,1722309041403,-500.0,0.00013698,2]
[333654718,1722309041414,-500.0,0.00013698,2]
[333654719,1722309041424,-507.46605281,0.00013698,2]
[333654720,1722309041433,-507.62258195,0.00013698,2]
[333654721,1722309041443,-519.94501728,0.00013698,2]
[333654722,1722309041453,-500.0,0.00013698,2]
[333654723,1722309041463,-500.0,0.00013698,2]
[333654724,1722309041472,-500.0,0.00013698,2]
[333654725,1722309041482,-500.0,0.00013698,2]
[333654726,1722309041491,-505.39311625,0.00013698,2]
[333654727,1722309041501,-11188.01,0.00013698,2]
[333654728,1722309041510,-161.66849535,0.00013698,2]
[333654729,1722309041519,-593.34,0.00013698,2]
[333654730,1722309041528,-500.0,0.00013698,2]
[333654731,1722309041538,-500.0,0.00013698,2]
[333654732,1722309041548,-3000.0,0.00013699,2]
[333654733,1722309041557,-1732.147801,0.00013699,2]
[333654734,1722309041567,-355.0,0.00013699,2]
[333654735,1722309041576,-294.0793213,0.000137,2]
[333654736,1722309041586,-150.112233,0.000137,2]
[333654737,1722309041595,-150.112233,0.000137,2]
[333654738,1722309041605,-300.0,0.000138,4]
[333654739,1722309041682,-150.112233,0.000138,2]
[333654740,1722309041692,-508.31937502,0.00013861,2]
[333654741,1722309041702,-160.66468513,0.00013872,2]
[333654742,1722309041711,-81346.97795985,0.0001388,2]
[333654743,1722309041981,-508.13183793,0.00013698,2]
[333654744,1722309041991,-500.0,0.00013698,2]
[333654745,1722309042001,-176863.16672777,0.0001388,2]
[333654776,1722309043283,-503.58313094,0.00013698,2]
[333654778,1722309043294,-505.57039172,0.00013698,2]
[333654780,1722309043306,-500.0,0.00013698,2]
[333654782,1722309043316,-2148.56163215,0.0001388,2]
[333654784,1722309043328,-4594.27632315,0.0001388,2]
[333654787,1722309043340,-10437.43702866,0.0001388,2]
[333655097,1722309605983,1042.7098352,0.0001,14]
[333655156,1722310232175,-154.74005423,9.999e-05,2]
[333655158,1722310232186,-154.74169856,9.999e-05,2]
[333655160,1722310232196,-229.0,9.999e-05,2]
[333655162,1722310232206,-155.06621248,0.0001,2]
[333655163,1722310232215,-963.26514221,0.0001,2]
[333655165,1722310232225,-267.09204488,0.0001,2]
[333655167,1722310232235,-1070.6419705,0.0001,2]
[333655169,1722310232244,-157.32619577,0.0001,2]
[333655170,1722310232254,-4723.82528033,0.0001,2]
[333655172,1722310232264,-200.0,0.0001,2]
[333655174,1722310232274,-200.0,0.0001,2]
[333655175,1722310232285,-400.0,0.0001137,2]
[333655176,1722310232295,-24900.0,0.00012011,2]
[333655177,1722310232305,-161.090804,0.00012116,2]
[333655178,1722310232315,-161.090804,0.00012151,2]
[333655179,1722310232324,-161.090804,0.00012186,2]
[333655180,1722310232334,-161.090804,0.00012221,2]
[333655181,1722310232344,-161.090804,0.00012256,2]
[333655182,1722310232354,-161.090804,0.00012291,2]
[333655183,1722310232364,-161.090804,0.00012326,2]
[333655184,1722310232373,-161.090804,0.00012361,2]
[333655185,1722310232383,-161.090804,0.00012396,2]
[333655186,1722310232392,-161.090804,0.00012432,2]
[333655187,1722310232402,-161.090804,0.00012467,2]
[333655188,1722310232412,-130.21948649,0.00012502,2]
[333655201,1722310238314,-30.87131751,0.00012502,2]
[333655202,1722310238324,-161.090804,0.00012537,2]
[333655203,1722310238333,-161.090804,0.00012572,2]
[333655204,1722310238343,-161.090804,0.00012607,2]
[333655205,1722310238352,-161.090804,0.00012642,2]
[333655206,1722310238361,-161.090804,0.00012677,2]
[333655207,1722310238372,-161.090804,0.00012712,2]
[333655208,1722310238383,-161.090804,0.00012747,2]
[333655209,1722310238394,-1926.4385602,0.000129,2]
[333655210,1722310238405,-191.217873,0.00012986,2]
[333655211,1722310238417,-600.0,0.00013147,2]
[333655212,1722310238428,-433.8497581,0.00013288,2]
[333655213,1722310238438,-600.0,0.00013413,2]
[333655214,1722310238449,-1410.0,0.00013439,2]
[333655215,1722310238459,-150.85847389,0.00013441,2]
[333655216,1722310238469,-600.0,0.00013553,2]
[333655217,1722310238481,-309.21750026,0.00013593,2]
[333655218,1722310238494,-309.21750025,0.00013661,2]
[333655219,1722310238505,-26553.9467153,0.00013686,2]
[333655220,1722310238516,-194403.927539,0.00013688,2]
[333655221,1722310238526,-600.0,0.00013693,2]
[333655222,1722310238536,-19325.01631849,0.00013698,5]
[333655223,1722310238547,-500.0,0.00013698,2]
[333655224,1722310238557,-500.0,0.00013698,2]
[333655225,1722310238567,-500.0,0.00013698,2]
[333655226,1722310238577,-507.27643484,0.00013698,2]
[333655227,1722310238586,-519.60057019,0.00013698,2]
[333655228,1722310238595,-500.0,0.00013698,2]
[333655229,1722310238604,-505.47645182,0.00013698,2]
[333655230,1722310238613,-500.0,0.00013698,2]
[333655231,1722310238623,-500.0,0.00013698,2]
[333655232,1722310238632,-500.0,0.00013698,2]
[333655233,1722310238642,-508.39132761,0.00013698,2]
[333655234,1722310238652,-516.15214372,0.00013698,2]
[333655235,1722310238665,-280.07178987,0.00013698,2]
[333655236,1722310238675,-500.0,0.00013698,2]
[333655237,1722310238685,-500.0,0.00013698,2]
[333655238,1722310238694,-500.0,0.00013698,2]
[333655239,1722310238705,-500.0,0.00013698,2]
[333655240,1722310238714,-500.0,0.00013698,2]
[333655241,1722310238724,-512.98089755,0.00013698,2]
[333655242,1722310238733,-500.0,0.00013698,2]
[333655243,1722310238745,-500.0,0.00013698,2]
[333655244,1722310238843,-500.0,0.00013698,2]
[333655245,1722310238854,-500.0,0.00013698,2]
[333655246,1722310238865,-500.0,0.00013698,2]
[333655247,1722310238875,-500.0,0.00013698,2]
[333655248,1722310238885,-500.0,0.00013698,2]
[333655249,1722310238895,-519.74993185,0.00013698,2]
[333655250,1722310238904,-500.0,0.00013698,2]
[333655251,1722310238914,-502.82336832,0.00013698,2]
[333655252,1722310238923,-504.22637958,0.00013698,2]
[333655253,1722310238933,-500.0,0.00013698,2]
[333655254,1722310238942,-500.0,0.00013698,2]
[333655255,1722310238953,-500.0,0.00013698,2]
[333655256,1722310238963,-500.0,0.00013698,2]
[333655257,1722310238973,-500.0,0.00013698,2]
[333655258,1722310238983,-506.61786949,0.00013698,2]
[333655259,1722310238992,-500.0,0.00013698,2]
[333655260,1722310239003,-500.0,0.00013698,2]
[333655261,1722310239014,-500.0,0.00013698,2]
[333655262,1722310239026,-563.79274309,0.00013698,2]
[333655263,1722310239037,-505.98170616,0.00013698,2]
[333655264,1722310239047,-500.0,0.00013698,2]
[333655265,1722310239058,-581.33432109,0.00013698,2]
[333655266,1722310239067,-502.6275827,0.00013698,2]
[333655267,1722310239078,-500.0,0.00013698,2]
[333655268,1722310239089,-502.382924,0.00013698,2]
[333655269,1722310239102,-500.0,0.00013698,2]
[333655270,1722310239111,-500.0,0.00013698,2]
[333655271,1722310239121,-507.61202879,0.00013698,2]
[333655272,1722310239130,-500.0,0.00013698,2]
[333655273,1722310239139,-516.22,0.00013698,2]
[333655274,1722310239149,-500.0,0.00013698,2]
[333655275,1722310239159,-500.0,0.00013698,2]
[333655276,1722310239171,-500.0,0.00013698,2]
[333655277,1722310239184,-500.0,0.00013698,2]
[333655278,1722310239194,-502.1293655,0.00013698,2]
[333655279,1722310239203,-500.0,0.00013698,2]
[333655280,1722310239212,-155.24210784,0.00013698,2]
[333655281,1722310239223,-633.52817781,0.00013698,2]
[333655282,1722310239232,-472.27686227,0.00013698,2]
[333655283,1722310239241,-517.77964056,0.00013698,2]
[333655284,1722310239250,-500.0,0.00013698,2]
[333655285,1722310239261,-500.0,0.00013698,2]
[333655286,1722310239270,-500.0,0.00013698,2]
[333655287,1722310239279,-510.25349903,0.00013698,2]
[333655288,1722310239290,-500.0,0.00013698,2]
[333655289,1722310239302,-500.0,0.00013698,2]
[333655290,1722310239313,-500.0,0.00013698,2]
[333655291,1722310239324,-500.0,0.00013698,2]
[333655292,1722310239334,-502.66585048,0.00013698,2]
[333655293,1722310239345,-500.0,0.00013698,2]
[333655294,1722310239355,-500.0,0.00013698,2]
[333655295,1722310239365,-500.0,0.00013698,2]
[333655296,1722310239375,-500.0,0.00013698,2]
[333655297,1722310239384,-500.0,0.00013698,2]
[333655298,1722310239394,-500.0,0.00013698,2]
[333655299,1722310239403,-505.15030162,0.00013698,2]
[333655300,1722310239416,-570.236357,0.00013698,2]
[333655301,1722310239425,-500.0,0.00013698,2]
[333655302,1722310239435,-500.0,0.00013698,2]
[333655303,1722310239444,-500.0,0.00013698,2]
[333655304,1722310239454,-500.0,0.00013698,2]
[333655305,1722310239463,-500.0,0.00013698,2]
[333655306,1722310239473,-500.0,0.00013698,2]
[333655307,1722310239482,-500.0,0.00013698,2]
[333655308,1722310239492,-505.69510926,0.00013698,2]
[333655309,1722310239502,-500.0,0.00013698,2]
[333655310,1722310239511,-500.0,0.00013698,2]
[333655311,1722310239521,-500.0,0.00013698,2]
[333655312,1722310239530,-500.0,0.00013698,2]
[333655313,1722310239540,-320.21450617,0.00013698,2]
[333655314,1722310239549,-500.0,0.00013698,2]
[333655315,1722310239559,-500.0,0.00013698,2]
[333655316,1722310239569,-509.93266893,0.00013698,2]
[333655317,1722310239578,-521.55958292,0.00013698,2]
[333655318,1722310239588,-500.0,0.00013698,2]
[333655319,1722310239597,-500.0,0.00013698,2]
[333655320,1722310239607,-500.0,0.00013698,2]
[333655321,1722310239616,-500.0,0.00013698,2]
[333655322,1722310239625,-502.03617777,0.00013698,2]
[333655323,1722310239635,-500.0,0.00013698,2]
[333655324,1722310239645,-505.56926121,0.00013698,2]
[333655325,1722310239655,-500.0,0.00013698,2]
[333655326,1722310239669,-500.0,0.00013698,2]
[333655327,1722310239678,-500.0,0.00013698,2]
[333655328,1722310239687,-500.0,0.00013698,2]
[333655329,1722310239697,-500.0,0.00013698,2]
[333655330,1722310239707,-500.0,0.00013698,2]
[333655331,1722310239716,-500.0,0.00013698,2]
[333655332,1722310239726,-500.0,0.00013698,2]
[333655333,1722310239735,-500.0,0.00013698,2]
[333655334,1722310239747,-507.64387144,0.00013698,2]
[333655335,1722310239756,-500.0,0.00013698,2]
[333655336,1722310239766,-500.0,0.00013698,2]
[333655337,1722310239775,-500.0,0.00013698,2]
[333655338,1722310239785,-500.0,0.00013698,2]
[333655339,1722310239794,-500.0,0.00013698,2]
[333655340,1722310239803,-598.21473949,0.00013698,2]
[333655341,1722310239813,-500.0,0.00013698,2]
[333655342,1722310239823,-500.0,0.00013698,2]
[333655343,1722310239833,-500.0,0.00013698,2]
[333655344,1722310239842,-400.70284305,0.00013698,2]
[333655345,1722310239852,-500.0,0.00013698,2]
[333655346,1722310239862,-504.29775778,0.00013698,2]
[333655347,1722310239872,-500.50572655,0.00013698,2]
[333655348,1722310239882,-500.0,0.00013698,2]
[333655349,1722310239891,-503.65898258,0.00013698,2]
[333655350,1722310239900,-500.0,0.00013698,2]
[333655352,1722310239910,-526.18916049,0.00013698,2]
[333655353,1722310239922,-500.0,0.00013698,2]
[333655354,1722310239931,-500.0,0.00013698,2]
[333655355,1722310239941,-500.0,0.00013698,2]
[333655356,1722310239951,-500.0,0.00013698,2]
[333655357,1722310239960,-500.0,0.00013698,2]
[333655358,1722310239970,-500.0,0.00013698,2]
[333655359,1722310239980,-500.0,0.00013698,2]
[333655360,1722310239990,-500.0,0.00013698,2]
[333655361,1722310239999,-508.13082587,0.00013698,2]
[333655362,1722310240009,-500.0,0.00013698,2]
[333655363,1722310240019,-500.0,0.00013698,2]
[333655364,1722310240028,-504.40749591,0.00013698,2]
[333655365,1722310240038,-500.0,0.00013698,2]
[333655366,1722310240047,-508.06723166,0.00013698,2]
[333655367,1722310240057,-500.0,0.00013698,2]
[333655368,1722310240066,-500.0,0.00013698,2]
[333655369,1722310240076,-500.0,0.00013698,2]
[333655370,1722310240086,-316.67634499,0.00013698,2]
[333655371,1722310240095,-437.8107478,0.00013698,2]
[333655372,1722310240105,-500.0,0.00013698,2]
[333655373,1722310240117,-500.0,0.00013698,2]
[333655374,1722310240128,-500.0,0.00013698,2]
[333655375,1722310240139,-500.0,0.00013698,2]
[333655376,1722310240151,-500.0,0.00013698,2]
[333655377,1722310240162,-500.0,0.00013698,2]
[333655378,1722310240174,-500.0,0.00013698,2]
[333655379,1722310240183,-500.0,0.00013698,2]
[333655380,1722310240192,-500.0,0.00013698,2]
[333655381,1722310240202,-500.0,0.00013698,2]
[333655385,1722310240282,-500.0,0.00013698,2]
[333655386,1722310240292,-529.22402115,0.00013698,2]
[333655387,1722310240302,-500.0,0.00013698,2]
[333655388,1722310240312,-500.0,0.00013698,2]
[333655389,1722310240321,-500.0,0.00013698,2]
[333655390,1722310240331,-612.79404633,0.00013698,2]
[333655391,1722310240340,-500.0,0.00013698,2]
[333655392,1722310240350,-500.0,0.00013698,2]
[333655393,1722310240359,-500.0,0.00013698,2]
[333655394,1722310240369,-500.0,0.00013698,2]
[333655395,1722310240378,-500.0,0.00013698,2]
[333655396,1722310240387,-500.0,0.00013698,2]
[333655397,1722310240397,-500.0,0.00013698,2]
[333655398,1722310240406,-500.0,0.00013698,2]
[333655399,1722310240416,-500.0,0.00013698,2]
[333655400,1722310240427,-500.0,0.00013698,2]
[333655401,1722310240437,-500.0,0.00013698,2]
[333655402,1722310240446,-500.0,0.00013698,2]
[333655403,1722310240456,-500.0,0.00013698,2]
[333655404,1722310240466,-500.0,0.00013698,2]
[333655405,1722310240476,-500.0,0.00013698,2]
[333655406,1722310240486,-505.22102739,0.00013698,2]
[333655407,1722310240495,-500.0,0.00013698,2]
[333655408,1722310240505,-500.0,0.00013698,2]
[333655409,1722310240515,-500.0,0.00013698,2]
[333655410,1722310240524,-500.0,0.00013698,2]
[333655411,1722310240534,-500.0,0.00013698,2]
[333655412,1722310240544,-499.53,0.00013698,2]
[333655413,1722310240554,-500.0,0.00013698,2]
[333655414,1722310240564,-1353.85999653,0.00013698,2]
[333655415,1722310240574,-500.0,0.00013698,2]
[333655416,1722310240583,-550.0,0.00013698,2]
[333655417,1722310240593,-1353.85999653,0.00013698,2]
[333655418,1722310240602,-1353.85999653,0.00013698,2]
[333655419,1722310240612,-1353.85999653,0.00013698,2]
[333655420,1722310240623,-1353.85999653,0.00013698,2]
[333655421,1722310240632,-1353.85999653,0.00013698,2]
[333655422,1722310240643,-1353.85999653,0.00013698,2]
[333655423,1722310240653,-1353.85999653,0.00013698,2]
[333655424,1722310240669,-500.0,0.00013698,2]
[333655425,1722310240678,-500.0,0.00013698,2]
[333655426,1722310240687,-500.0,0.00013698,2]
[333655427,1722310240697,-505.47025023,0.00013698,2]
[333655428,1722310240706,-500.0,0.00013698,2]
[333655429,1722310240716,-500.0,0.00013698,2]
[333655430,1722310240726,-523.76349064,0.00013698,2]
[333655431,1722310240737,-501.04471659,0.00013698,2]
[333655432,1722310240746,-593.34,0.00013698,2]
[333655433,1722310240755,-500.0,0.00013698,2]
[333655434,1722310240765,-500.0,0.00013698,2]
[333655435,1722310240775,-500.0,0.00013698,2]
[333655436,1722310240786,-187.06213236,0.00013698,2]
[333655437,1722310240796,-500.0,0.00013698,2]
[333655438,1722310240808,-500.0,0.00013698,2]